[Event "Gibraltar Challengers B 2019"]
[Site "Caleta"]
[Date "2019.01.29"]
[Round "4"]
[White "Erdogan, Hassan"]
[Black "Cano Sevilla, Ivan"]
[Result "0-1"]
[ECO "D02"]
[WhiteElo "1833"]
[BlackElo "1950"]
[Annotator "NA RC"]
[PlyCount "72"]
[EventDate "2019.01.18"]
[EventType "swiss"]
[EventCountry "GGB"]
[SourceTitle "playchess.com"]
[Source "ChessBase"]
[SourceQuality "1"]
[TimeControl "6600+10"]

{[%evp 30,69,-81,32767,32767,32767,32767,-134,32767,32767,32767,-266,-314,-277,-172,-183,-167,-211,-219,-248,-291,-232,-325,-410,-543,-454,-560,32767,-645,-701,-772,-815,-1575,-1316,-1467,32767,-1619,32767,32767,-29989,-29990,-29990]} 1. d4 {[%emt 0:00:00]} Nf6 {[%emt 0:00:00]} 2. Bf4 {[%emt 0:00:05]} d5 {[%emt 0:00:01]} 3. e3 {[%emt 0:00:00]} c5 {[%emt 0:00:02]} 4. c3 {[%emt 0:00:06]} Nc6 {[%emt 0:00:02]} 5. Nf3 {[%emt 0:01:25]} Qb6 {[%emt 0:00:15]} 6. Qb3 {[%emt 0:00:39]} c4 {[%emt 0:00:00]} 7. Qxb6 {[%emt 0:01:16]} axb6 {[%emt 0:00:00]} 8. Na3 {[%emt 0:02:06]} Na7 {[%emt 0:00:00] D02: 1 d4 d5 2 Nf3 sidelines, including 2...Nf6 3 g3 and 2...Nf6 3 Bf4} (8... Bf5 9. Nb5 Kd7 10. Be2 e6 11. O-O Ra5 12. a4 Bc2 13. Ng5 Bg6 14. Rfc1 Be7 15. Nf3 Rha8 16. Nc7 Rc8 {0-1 (35) Javakhishvili,L (2465)-Girya,O (2482) Tbilisi 2018}) 9. h3 {[%emt 0:03:43]} e5 {[%emt 0:00:03]} 10. dxe5 {[%emt 0:06:09]} Bxa3 {[%emt 0:00:07]} 11. bxa3 {[%emt 0:05:34]} Ne4 {[%emt 0:00:05]} 12. g4 $146 {[%emt 0:15:13]} ({Predecessor:} 12. Nd4 O-O 13. Rc1 Nc6 14. Nb5 Ra5 15. Rb1 Na7 16. Nxa7 Rxa7 {0-1 (24) Lenz,J (1083)-Kirch,B (1471) LSS email 2013}) 12... Nb5 {[%emt 0:01:18]} 13. Nd4 {[%emt 0:03:07]} Nexc3 {[%emt 0:14:49]} 14. Nxb5 {[%emt 0:17:52]} Nxb5 {[%emt 0:00:03]} 15. Bg2 {[%emt 0:00:08]} Nc3 {[%emt 0:05:27]} 16. e6 {[%emt 0:10:51]} Bxe6 {[%emt 0:08:43]} 17. Be5 {[%emt 0:00:11]} Rxa3 {[%emt 0:03:40]} 18. Bxg7 {[%emt 0:01:00]} Rg8 {[%emt 0:00:03]} 19. Bd4 {[%emt 0:00:45]} b5 {[%emt 0:01:15]} 20. Bf6 {[%emt 0:01:05]} (20. Bxc3 $17 {was necessary.} Rxc3 21. Rb1) 20... Kd7 {[%emt 0:03:19]} ({Not} 20... Nxa2 21. f4 $17) 21. f4 {[%emt 0:00:02]} Ne4 {[%emt 0:01:31]} ({Don't do} 21... Rxa2 22. Rxa2 Nxa2 23. Rh2 $17) 22. Bxe4 {[%emt 0:03:18]} dxe4 {[%emt 0:00:07]} ({Don't play} 22... Rxe3+ 23. Kd2 $17) 23. O-O-O+ {[%emt 0:00:12]} Kc6 {[%emt 0:01:11]} 24. f5 {[%emt 0:00:12] [#]} Bd5 $1 {[%emt 0:00:34]} ({And not} 24... Rxe3 25. fxe6 fxe6 26. Rhe1 $16) 25. Rd4 {[%emt 0:00:22]} Rxe3 {[%emt 0:00:35]} 26. g5 {[%emt 0:07:02]} Ra8 {[%emt 0:02:36]} 27. Rhd1 {[%emt 0:00:39]} Rd3 {[%emt 0:00:06]} 28. R1xd3 {[%emt 0:01:07]} cxd3 {[%emt 0:00:59]} 29. h4 {[%emt 0:00:56]} Rxa2 {[%emt 0:00:25]} 30. Be5 {[%emt 0:00:51]} Kc5 {[%emt 0:02:19]} 31. h5 {[%emt 0:01:43]} Rg2 {[%emt 0:01:15]} 32. Bf6 {[%emt 0:00:31]} Rf2 {[%emt 0:01:32]} 33. g6 {[%emt 0:00:12]} fxg6 {[%emt 0:00:06]} 34. fxg6 {[%emt 0:00:07]} Rxf6 {[%emt 0:00:42]} 35. Rxd5+ {[%emt 0:00:09]} Kxd5 {[%emt 0:00:07]} 36. g7 {[%emt 0:00:01]} Rf1+ {[%emt 0:00:01]} 0-1

[Event "Gibraltar Challengers B 2019"]
[Site "Caleta"]
[Date "2019.01.29"]
[Round "4"]
[White "Maldonado Mena, German"]
[Black "Villar Reymundo, Juan Antonio"]
[Result "0-1"]
[ECO "A45"]
[WhiteElo "1808"]
[BlackElo "2237"]
[Annotator "RC"]
[PlyCount "52"]
[EventDate "2019.01.18"]
[EventType "swiss"]
[EventCountry "GGB"]
[SourceTitle "playchess.com"]
[Source "ChessBase"]
[SourceQuality "1"]
[TimeControl "6600+10"]

1. d4 {[%emt 0:00:03]} Nf6 {[%emt 0:06:52]} 2. Bf4 {[%emt 0:00:13]} b5 {[%emt 0:00:16]} 3. e3 {[%emt 0:00:37]} a6 {[%emt 0:00:08]} 4. Qf3 {[%emt 0:03:46]} d5 {[%emt 0:00:45]} 5. Bd3 {[%emt 0:03:07]} Bb7 {[%emt 0:01:51]} 6. Nd2 {[%emt 0:00:37]} Nbd7 {[%emt 0:01:00]} 7. e4 {[%emt 0:04:04]} dxe4 {[%emt 0:03:15]} 8. Nxe4 {[%emt 0:00:19]} Qc8 {[%emt 0:00:46]} 9. g4 {[%emt 0:05:43]} e6 {[%emt 0:02:10]} 10. g5 {[%emt 0:07:07]} Nd5 {[%emt 0:00:44]} 11. Bd2 {[%emt 0:02:20]} c5 {[%emt 0:03:43]} 12. c3 {[%emt 0:02:49]} Qc6 {[%emt 0:03:07]} 13. Ng3 {[%emt 0:01:17]} Qb6 {[%emt 0:19:44]} 14. Qg4 {[%emt 0:05:51]} cxd4 {[%emt 0:01:18]} 15. cxd4 {[%emt 0:00:34]} Nb4 {[%emt 0:24:03]} 16. Be4 {[%emt 0:03:59]} f5 {[%emt 0:01:43]} 17. gxf6 {[%emt 0:04:37]} Nxf6 {[%emt 0:00:16]} 18. Qf3 {[%emt 0:05:15]} Nxe4 {[%emt 0:03:55]} 19. Nxe4 {[%emt 0:01:30]} Nc2+ {[%emt 0:00:16]} 20. Kf1 {[%emt 0:00:51]} Nxa1 {[%emt 0:00:55]} 21. Qh5+ {[%emt 0:00:16]} Kd7 {[%emt 0:01:59]} 22. Qf7+ {[%emt 0:00:43]} Kc8 {[%emt 0:00:43]} 23. Qe8+ {[%emt 0:00:30]} Qd8 {[%emt 0:00:14]} 24. Qxe6+ {[%emt 0:01:29]} Qd7 {[%emt 0:00:06]} 25. Qe5 {[%emt 0:01:56]} Bc6 {[%emt 0:02:00]} 26. Bf4 {[%emt 0:02:11]} Kb7 {[%emt 0:00:35]} 0-1

[Event "Gibraltar Challengers B 2019"]
[Site "Caleta"]
[Date "2019.01.29"]
[Round "4"]
[White "Sidali, Elias Hulleberg"]
[Black "Bottema, Martin"]
[Result "1/2-1/2"]
[ECO "C47"]
[WhiteElo "1783"]
[BlackElo "2104"]
[Annotator "NA RC"]
[PlyCount "84"]
[EventDate "2019.01.18"]
[EventType "swiss"]
[EventCountry "GGB"]
[SourceTitle "playchess.com"]
[Source "ChessBase"]
[SourceQuality "1"]
[TimeControl "6600+10"]

{[%evp 42,81,-2,32767,-12,-45,32767,-58,-43,-43,-40,-51,-20,-20,0,0,0,-2,-1,0,-2,-5,-4,-29,-32,-24,-23,-50,-46,-42,-47,-98,-104,-149,-77,-106,-101,-103,-100,-126,0,-143]} 1. e4 {[%emt 0:00:01]} e5 {[%emt 0:00:00]} 2. Nf3 {[%emt 0:00:02]} Nc6 {[%emt 0:00:06]} 3. Nc3 {[%emt 0:00:04]} Nf6 {[%emt 0:00:07]} 4. Be2 {[%emt 0:00:02]} d5 {[%emt 0:02:46]} 5. exd5 {[%emt 0:00:25]} Nxd5 {[%emt 0:00:06]} 6. O-O {[%emt 0:00:09]} Nxc3 {[%emt 0:01:41]} 7. bxc3 {[%emt 0:00:03]} Bd6 {[%emt 0:00:10] C47: Scotch Four Knights and Four Knights with 4 g3} (7... e4 8. Ne1 Bd6 9. f3 f5 10. fxe4 fxe4 11. Rb1 Qe7 12. d4 exd3 13. cxd3 Bd7 14. Rxb7 O-O-O 15. Rb2 {1-0 (29) Van Foreest,J (2629)-Giri,A (2752) Amstelveen 2017}) 8. d4 {[%emt 0:00:05]} exd4 {[%emt 0:03:04]} 9. cxd4 {[%emt 0:00:07]} O-O {[%emt 0:00:11]} 10. Rb1 {[%emt 0:06:32]} Rb8 {[%emt 0:05:09]} 11. Bg5 $146 {[%emt 0:01:55]} ({Predecessor:} 11. c4 Bg4 12. Be3 b6 13. h3 Bxf3 14. Bxf3 Ne7 15. c5 bxc5 16. dxc5 {1-0 (101) Kutchoukov,D (1902)-Shakhverdian,W (1777) Assen 2018}) 11... f6 {[%emt 0:04:52]} 12. Be3 {[%emt 0:02:24]} Ne7 {[%emt 0:12:15]} 13. c4 {[%emt 0:03:16]} Nf5 {[%emt 0:04:54]} 14. c5 {[%emt 0:03:39]} Nxe3 {[%emt 0:02:28]} 15. Qb3+ {[%emt 0:00:12]} Kh8 {[%emt 0:00:31]} 16. fxe3 {[%emt 0:00:13]} Be7 {[%emt 0:00:16]} 17. Bd3 {[%emt 0:04:50]} g6 {[%emt 0:06:31]} 18. Rbd1 {[%emt 0:10:34]} c6 {[%emt 0:01:27]} 19. e4 {[%emt 0:04:38]} Bg4 {[%emt 0:00:40]} 20. Qc3 {[%emt 0:02:01]} b6 {[%emt 0:00:43]} 21. cxb6 {[%emt 0:00:13]} axb6 {[%emt 0:04:02]} 22. Bc2 {[%emt 0:02:26]} Qd6 {[%emt 0:03:14]} 23. e5 {[%emt 0:05:55]} fxe5 {[%emt 0:00:31]} 24. dxe5 {[%emt 0:05:39]} Qc5+ {[%emt 0:00:10]} 25. Qxc5 {[%emt 0:00:05]} Bxc5+ {[%emt 0:00:04]} 26. Kh1 {[%emt 0:00:05]} Be6 {[%emt 0:04:56]} 27. Bb3 {[%emt 0:00:44]} Bg4 {[%emt 0:03:44]} 28. h3 {[%emt 0:01:43]} Bxf3 {[%emt 0:00:22]} 29. Rxf3 {[%emt 0:00:17]} Rxf3 {[%emt 0:00:23]} 30. gxf3 {[%emt 0:00:05]} Re8 {[%emt 0:00:34]} 31. e6 {[%emt 0:01:56]} Kg7 {[%emt 0:00:05]} 32. Rc1 {[%emt 0:01:30]} Rc8 {[%emt 0:05:15]} 33. a4 {[%emt 0:00:35]} Be7 {[%emt 0:01:35]} 34. Bd5 {[%emt 0:00:35]} c5 {[%emt 0:09:46]} 35. Kg2 {[%emt 0:01:56]} Rd8 {[%emt 0:01:32]} 36. Bc4 {[%emt 0:01:40]} Rd2+ {[%emt 0:00:09]} 37. Kf1 {[%emt 0:01:10]} Rd4 {[%emt 0:01:29]} ({Black should try} 37... Rh2 38. Rd1 Rxh3) 38. Ke2 {[%emt 0:00:13]} Kf6 {[%emt 0:01:06]} 39. Kf2 $1 $11 {[%emt 0:05:18] was the only way to keep the balance.} Bd6 {[%emt 0:00:36]} 40. Rc2 {[%emt 0:00:34]} Be7 $11 {[%emt 0:01:48]} ({Black should play} 40... g5 $17 41. Ke2 Ke7) 41. Ke2 {[%emt 0:01:52]} Ke5 {[%emt 0:01:52]} 42. Kf2 {[%emt 0:00:32]} Kf6 {[%emt 0:00:23]} 1/2-1/2

[Event "Gibraltar Challengers B 2019"]
[Site "Caleta"]
[Date "2019.01.29"]
[Round "4"]
[White "Tkadlecek, Petr"]
[Black "Diaz Mino, Daniel"]
[Result "0-1"]
[ECO "A48"]
[WhiteElo "1719"]
[BlackElo "1769"]
[Annotator "NA RC"]
[PlyCount "134"]
[EventDate "2019.01.18"]
[EventType "swiss"]
[EventCountry "GGB"]
[SourceTitle "playchess.com"]
[Source "ChessBase"]
[SourceQuality "1"]
[TimeControl "6600+10"]

1. d4 {[%emt 0:02:50]} Nf6 {[%emt 0:00:07]} 2. Nf3 {[%emt 0:00:13]} g6 {[%emt 0:00:11]} 3. Bf4 {[%emt 0:00:08]} Bg7 {[%emt 0:00:19]} 4. e3 {[%emt 0:00:09]} O-O {[%emt 0:00:18]} 5. Bd3 {[%emt 0:00:30]} d6 {[%emt 0:00:08]} 6. h3 {[%emt 0:00:30]} c5 {[%emt 0:00:25]} 7. c3 {[%emt 0:01:23]} Nbd7 {[%emt 0:00:20]} 8. O-O {[%emt 0:00:43]} a6 {[%emt 0:00:07]} 9. a4 {[%emt 0:00:45]} b6 {[%emt 0:00:13]} 10. Nbd2 {[%emt 0:02:20]} Bb7 {[%emt 0:01:42]} 11. Bc2 {[%emt 0:02:09]} Qc7 {[%emt 0:20:15]} 12. Qe2 {[%emt 0:01:40]} Rfe8 {[%emt 0:01:42]} 13. Bb3 {[%emt 0:04:51]} Rab8 {[%emt 0:17:20]} 14. Ng5 {[%emt 0:02:24]} Rf8 {[%emt 0:03:07]} 15. Rfc1 {[%emt 0:09:16]} h6 {[%emt 0:01:44]} 16. Ngf3 {[%emt 0:01:10]} Qd8 {[%emt 0:03:00]} 17. Bc4 {[%emt 0:01:24]} Ra8 {[%emt 0:03:01]} 18. Bg3 {[%emt 0:01:03]} Re8 {[%emt 0:09:00]} 19. Nh2 {[%emt 0:07:22]} Nh5 {[%emt 0:16:37]} 20. Qg4 {[%emt 0:02:18]} Nxg3 {[%emt 0:01:19]} 21. Qxg3 {[%emt 0:00:09]} d5 {[%emt 0:01:51]} 22. Bd3 {[%emt 0:01:13]} Qb8 {[%emt 0:00:39]} 23. Qg4 {[%emt 0:01:30]} Nf6 {[%emt 0:00:20]} 24. Qe2 {[%emt 0:00:48]} e5 {[%emt 0:01:48]} 25. dxe5 {[%emt 0:05:53]} Rxe5 {[%emt 0:01:28]} 26. Ng4 {[%emt 0:01:50]} Nxg4 {[%emt 0:00:20]} 27. Qxg4 {[%emt 0:00:15]} Rg5 {[%emt 0:00:25]} 28. Qe2 {[%emt 0:02:54]} c4 {[%emt 0:01:11]} 29. Bb1 {[%emt 0:02:48]} d4 {[%emt 0:01:53]} 30. Nf3 {[%emt 0:01:58]} d3 {[%emt 0:00:39]} 31. Qd1 {[%emt 0:00:31]} Bxf3 {[%emt 0:04:08]} 32. Qxf3 {[%emt 0:00:06]} Ra7 {[%emt 0:00:59]} 33. h4 {[%emt 0:05:00]} Rf5 {[%emt 0:00:29]} 34. Qe4 {[%emt 0:01:06]} Rc7 {[%emt 0:02:00]} 35. Ba2 {[%emt 0:01:50]} Qc8 {[%emt 0:01:10]} 36. Qg4 {[%emt 0:03:38]} h5 {[%emt 0:01:17]} 37. Qh3 {[%emt 0:01:28]} Qd8 {[%emt 0:00:34]} 38. Rd1 {[%emt 0:01:17]} Bf6 {[%emt 0:01:01]} 39. g3 {[%emt 0:02:08]} Ra5 {[%emt 0:01:19]} 40. Bb1 {[%emt 0:01:22]} Qe8 {[%emt 0:02:50]} 41. Rd2 {[%emt 0:01:58]} Rxa4 {[%emt 0:00:38]} 42. Rxa4 {[%emt 0:00:57]} Qxa4 {[%emt 0:00:02]} 43. Qf1 {[%emt 0:01:41]} Rd7 {[%emt 0:00:49]} 44. Qd1 {[%emt 0:03:26]} Qxd1+ {[%emt 0:00:28]} 45. Rxd1 {[%emt 0:00:05]} b5 {[%emt 0:00:14]} 46. Rd2 {[%emt 0:01:50]} a5 {[%emt 0:00:14]} 47. Kf1 {[%emt 0:02:02]} a4 {[%emt 0:00:16]} 48. Ba2 {[%emt 0:02:24]} a3 {[%emt 0:01:54]} 49. b3 {[%emt 0:01:50]} Bxc3 {[%emt 0:00:24]} 50. Rd1 {[%emt 0:00:23]} Rc7 {[%emt 0:00:17]} 51. bxc4 {[%emt 0:02:06]} bxc4 {[%emt 0:00:02]} 52. Rc1 {[%emt 0:06:41]} d2 {[%emt 0:00:27]} 53. Rd1 {[%emt 0:00:49]} Ba5 {[%emt 0:00:18]} 54. Bb1 {[%emt 0:06:34]} a2 {[%emt 0:00:57]} 55. Bxa2 {[%emt 0:00:55]} c3 {[%emt 0:00:07]} 56. Bb3 {[%emt 0:02:23]} c2 {[%emt 0:00:07]} 57. Bxc2 {[%emt 0:00:09]} Rxc2 {[%emt 0:00:07]} 58. Ke2 {[%emt 0:00:44]} Rc1 {[%emt 0:00:21]} 59. e4 {[%emt 0:00:36]} Kf8 {[%emt 0:00:24]} 60. f3 {[%emt 0:00:13]} Ke7 {[%emt 0:00:07]} 61. g4 {[%emt 0:00:19]} Rxd1 {[%emt 0:00:26]} 62. Kxd1 {[%emt 0:00:02]} Kd6 {[%emt 0:00:21]} 63. gxh5 {[%emt 0:00:39]} gxh5 {[%emt 0:00:12]} 64. f4 {[%emt 0:00:06]} Kc5 {[%emt 0:00:21]} 65. Ke2 {[%emt 0:00:34]} Kd4 {[%emt 0:00:13]} 66. e5 {[%emt 0:00:06]} Ke4 {[%emt 0:00:11]} 67. e6 {[%emt 0:00:07]} fxe6 {[%emt 0:00:07]} 0-1

[Event "Gibraltar Challengers B 2019"]
[Site "Caleta"]
[Date "2019.01.29"]
[Round "4"]
[White "Hng, Mei-Xian Eunice"]
[Black "Schouten, Freek"]
[Result "1-0"]
[ECO "C41"]
[WhiteElo "1718"]
[BlackElo "2087"]
[Annotator "NA RC"]
[PlyCount "79"]
[EventDate "2019.01.18"]
[EventType "swiss"]
[EventCountry "GGB"]
[SourceTitle "playchess.com"]
[Source "ChessBase"]
[SourceQuality "1"]
[TimeControl "6600+10"]

1. e4 {[%emt 0:00:00]} d6 {[%emt 0:00:00]} 2. d4 {[%emt 0:00:01]} Nf6 {[%emt 0:00:05]} 3. Nc3 {[%emt 0:00:09]} Nbd7 {[%emt 0:00:14]} 4. Nf3 {[%emt 0:00:13]} e5 {[%emt 0:00:12]} 5. h3 {[%emt 0:01:02]} Be7 {[%emt 0:00:21] C41: Philidor Defence} 6. Be2 {[%emt 0:00:27]} (6. g4 O-O 7. Be3 c6 8. g5 Ne8 9. Qd2 Nc7 10. O-O-O b5 11. Ne2 Ne6 12. Ng3 exd4 13. Nxd4 Nxd4 14. Qxd4 Bxg5 {½-½ (72) Antipov,M (2584)-Jobava,B (2669) Izmir 2016}) 6... c6 {[%emt 0:00:15]} 7. a4 {[%emt 0:00:34]} Qc7 {[%emt 0:00:27]} 8. O-O {[%emt 0:01:27]} h6 {[%emt 0:00:13]} 9. Be3 {[%emt 0:01:46]} g5 {[%emt 0:02:21]} 10. h4 $146 {[%emt 0:21:05]} ({Predecessor:} 10. Nd2 Nf8 11. Bg4 Bxg4 12. hxg4 Ng6 13. d5 c5 14. f3 a6 15. Ne2 {½-½ (15) Dey,J (2173)-Hilge,A (2143) Bayern 2017}) 10... Ng4 {[%emt 0:18:39]} 11. hxg5 {[%emt 0:09:36]} Nxe3 {[%emt 0:00:29]} 12. fxe3 {[%emt 0:00:12]} hxg5 {[%emt 0:01:44]} 13. Nh2 {[%emt 0:04:15]} Nf6 {[%emt 0:02:28]} 14. Ng4 {[%emt 0:01:42]} Bxg4 {[%emt 0:07:42]} 15. Bxg4 {[%emt 0:00:16]} Nxg4 {[%emt 0:05:03]} 16. Qxg4 {[%emt 0:00:10]} Qc8 {[%emt 0:00:05]} 17. Rf5 {[%emt 0:05:22]} Qe6 {[%emt 0:09:50]} 18. Raf1 {[%emt 0:12:55]} Rh7 {[%emt 0:12:44]} 19. b3 {[%emt 0:17:41]} O-O-O {[%emt 0:07:53]} 20. d5 {[%emt 0:02:41]} Qd7 {[%emt 0:00:16]} 21. Qe2 {[%emt 0:02:56]} f6 {[%emt 0:02:38]} 22. a5 {[%emt 0:05:26]} c5 {[%emt 0:17:48]} 23. Qc4 {[%emt 0:04:38]} Kb8 {[%emt 0:00:21]} 24. a6 $1 {[%emt 0:00:56]} b6 {[%emt 0:02:55]} 25. Nb5 {[%emt 0:06:20]} Rh4 {[%emt 0:02:31]} 26. Nc3 {[%emt 0:02:25]} Rdh8 {[%emt 0:00:39]} 27. Kf2 {[%emt 0:02:35]} Rh2 {[%emt 0:05:31]} 28. Qb5 {[%emt 0:02:00]} Qc8 $14 {[%emt 0:04:28]} 29. Ne2 {[%emt 0:01:11]} R8h4 {[%emt 0:02:01]} 30. Ng3 {[%emt 0:00:06]} Rh7 {[%emt 0:01:53]} 31. Rg1 {[%emt 0:00:25]} R2h4 {[%emt 0:00:43]} 32. Ke1 {[%emt 0:00:49]} Rxe4 {[%emt 0:01:24]} 33. Nxe4 {[%emt 0:01:31]} Qxf5 {[%emt 0:00:02]} 34. Qe8+ {[%emt 0:00:02]} Qc8 {[%emt 0:00:15]} 35. Qg6 {[%emt 0:00:18]} Qh8 {[%emt 0:00:10]} 36. Ke2 {[%emt 0:00:58]} Rh4 {[%emt 0:01:19]} 37. Rf1 {[%emt 0:00:39]} Qh5+ {[%emt 0:00:10]} 38. Qxh5 Rxh5 {[%emt 0:00:01]} 39. Nxg5 {[%emt 0:00:03]} fxg5 {[%emt 0:00:18]} 40. Rf2 {[%emt 0:00:47]} 1-0

[Event "Gibraltar Challengers B 2019"]
[Site "Caleta"]
[Date "2019.01.30"]
[Round "5"]
[White "Abdulraheem Abdulrahman Akint"]
[Black "Kozarcanin, Sead"]
[Result "1-0"]
[ECO "A14"]
[WhiteElo "2224"]
[BlackElo "2048"]
[Annotator "NA RC"]
[PlyCount "113"]
[EventDate "2019.01.18"]
[EventType "swiss"]
[EventCountry "GGB"]
[SourceTitle "playchess.com"]
[Source "ChessBase"]
[SourceQuality "1"]
[TimeControl "6600+10"]

{[%evp 12,111,29,32767,43,33,38,33,33,11,32767,32767,14,13,16,5,7,8,7,11,4,6,52,66,32767,32767,50,51,32767,112,119,128,94,88,100,95,170,157,187,184,32767,189,204,156,164,32767,147,32767,199,179,32767,206,259,32767,32767,32767,32767,32767,32767,32767,231,32767,247,243,240,247,252,278,314,32767,251,360,366,367,424,292,451,368,345,295,32767,383,392,329,347,369,333,343,410,32767,529,32767,1643,1011,1591,4818,32767,32767,32767,32767,29950,5214]} 1. Nf3 {[%emt 0:06:19]} d5 {[%emt 0:00:00]} 2. c4 {[%emt 0:00:07]} e6 {[%emt 0:00:06]} 3. g3 {[%emt 0:00:05]} Nf6 {[%emt 0:00:23]} 4. Bg2 {[%emt 0:00:13]} Be7 {[%emt 0:00:22]} 5. O-O {[%emt 0:00:09]} O-O {[%emt 0:00:04]} 6. b3 {[%emt 0:00:09]} a5 {[%emt 0:00:55]} 7. Nc3 {[%emt 0:00:24]} Na6 {[%emt 0:00:50] A14: English Opening: 1...e6 with b3 by White} 8. Bb2 {[%emt 0:00:33]} Nc5 {[%emt 0:00:15]} 9. Qb1 $146 {[%emt 0:04:42]} ({Predecessor:} 9. d4 Nce4 10. Nxe4 Nxe4 11. Nd2 Nxd2 12. Qxd2 a4 13. Qc2 c6 14. e4 Qa5 15. Bc3 {½-½ (31) Ikeda,J (2420)-Turov,M (2600) Teplice 2018}) 9... Nce4 {[%emt 0:09:41]} 10. d3 {[%emt 0:01:25]} Nxc3 {[%emt 0:00:47]} 11. Bxc3 {[%emt 0:00:04]} c5 {[%emt 0:00:32]} 12. e3 {[%emt 0:00:34]} b6 {[%emt 0:00:52]} 13. Qb2 {[%emt 0:01:21]} Bb7 {[%emt 0:00:56]} 14. Rfd1 {[%emt 0:00:52]} Qc8 {[%emt 0:01:23]} 15. Rac1 {[%emt 0:00:35]} Rd8 {[%emt 0:00:36]} 16. a4 {[%emt 0:11:31]} Ne8 {[%emt 0:02:53]} 17. cxd5 {[%emt 0:07:41]} exd5 {[%emt 0:03:21]} 18. d4 {[%emt 0:00:31]} Qe6 {[%emt 0:05:11]} 19. Ne5 {[%emt 0:05:14]} Rac8 {[%emt 0:15:04]} 20. dxc5 {[%emt 0:00:47]} Bxc5 {[%emt 0:00:34] [#]} 21. Nd3 $1 {[%emt 0:01:51]} Bd6 {[%emt 0:04:03]} 22. Nf4 {[%emt 0:03:58]} Bxf4 {[%emt 0:00:14]} 23. exf4 {[%emt 0:00:11]} ({Reject} 23. gxf4 $6 d4 $11) 23... Qg6 {[%emt 0:04:55]} (23... d4 $16 24. Rxd4 (24. Bxd4 Rxc1 25. Qxc1 Bxg2 $11) 24... Bxg2 25. Rxd8 Rxd8 26. Kxg2 h5) 24. Bd4 {[%emt 0:00:57]} Rc6 {[%emt 0:02:02]} 25. Rxc6 {[%emt 0:00:37]} Qxc6 {[%emt 0:00:16]} 26. Rc1 {[%emt 0:00:37]} Qd6 {[%emt 0:01:19]} 27. Bf1 {[%emt 0:03:06]} f6 {[%emt 0:00:35]} 28. Qe2 {[%emt 0:00:33]} Nc7 {[%emt 0:01:18]} 29. f5 {[%emt 0:08:57]} Ba6 {[%emt 0:02:19]} 30. Qc2 {[%emt 0:00:23]} Bxf1 {[%emt 0:00:34]} 31. Kxf1 {[%emt 0:02:49]} ({And not} 31. Qxc7 Bh3 $11) 31... Na6 {[%emt 0:02:27]} 32. Qc6 {[%emt 0:03:53]} Nb4 {[%emt 0:03:27]} 33. Qxd6 {[%emt 0:02:02]} Rxd6 {[%emt 0:00:03]} 34. Rc8+ {[%emt 0:00:18]} Kf7 {[%emt 0:00:02]} 35. Rc7+ {[%emt 0:00:13]} Kg8 {[%emt 0:00:18]} 36. Ke2 {[%emt 0:01:40]} g6 {[%emt 0:02:45]} 37. fxg6 {[%emt 0:00:54]} hxg6 {[%emt 0:00:01]} 38. Kd2 {[%emt 0:00:40]} Na6 {[%emt 0:02:45]} 39. Ra7 {[%emt 0:03:43]} Nc5 {[%emt 0:00:26]} 40. Bxc5 {[%emt 0:00:23]} bxc5 {[%emt 0:00:01]} 41. Rxa5 {[%emt 0:00:14]} Rc6 {[%emt 0:01:01]} 42. Ra7 {[%emt 0:05:47]} c4 {[%emt 0:03:25]} 43. b4 {[%emt 0:00:21]} d4 {[%emt 0:00:34]} (43... c3+ $142 44. Kc1 d4) 44. Rd7 {[%emt 0:00:18]} c3+ {[%emt 0:00:28]} 45. Kc1 {[%emt 0:07:28]} Rc4 {[%emt 0:01:21]} 46. a5 {[%emt 0:00:42]} Rxb4 {[%emt 0:02:59]} 47. a6 {[%emt 0:00:13]} d3 {[%emt 0:08:16]} 48. Rxd3 {[%emt 0:06:23]} Ra4 {[%emt 0:03:10]} 49. Rd6 {[%emt 0:00:25]} ({Not} 49. Rxc3 Rxa6 50. Kd2 g5 $14) 49... Kf7 {[%emt 0:00:10]} 50. Kc2 {[%emt 0:00:46]} Ra2+ {[%emt 0:00:22]} 51. Kxc3 {[%emt 0:00:33]} Rxf2 {[%emt 0:00:06]} 52. Kb3 {[%emt 0:01:09]} (52. Rd2 $142 Rf3+ 53. Kb4) 52... Rf1 {[%emt 0:01:16]} 53. Rd2 {[%emt 0:00:48]} Rb1+ {[%emt 0:00:22]} 54. Rb2 {[%emt 0:00:10]} Ra1 {[%emt 0:00:02]} 55. Ra2 {[%emt 0:00:14]} Rb1+ {[%emt 0:00:02]} 56. Kc4 $18 {[%emt 0:01:12]} Rb8 {[%emt 0:00:02]} 57. a7 {[%emt 0:00:22]} 1-0